Cogmind - Beta 14 @@@ ROGUE MODE // 2024.10.18 @ 19:38:20 Player: WazdakkaGutsmek Result: Destroyed by G-50 Soldier with Heavy Laser Performance ------------- Evolutions (1) 500 Regions Visited (6) 1200 Robots Destroyed (39) 195 Value Destroyed (820) 820 Prototype IDs (0) 0 Alien Tech Used (0) 0 Bonus (0) 0 TOTAL SCORE: 2715 Bonus ------- None Cogmind --------- Core Integrity 0/400 Matter 260/300 Energy 100/100 System Corruption 0% Temperature Cool (9) Movement Core (50) Location -8/Mines Parts ------- > --- POWER (1) -------- (None) > --- PROPULSION (2) --- (None) > --- UTILITY (4) ------ Improved Targeting Computer > --- WEAPON (2) ------- (None) > --- INVENTORY (5) ---- Improved Treads Wheel Wheel EM Shotgun EM Shotgun Peak State ------------ > --- POWER ------------ (None) > --- PROPULSION ------- (None) > --- UTILITY ---------- Humpback Makeshift Sensor Array Improved Targeting Computer > --- WEAPON ----------- Light Assault Rifle Gauss Rifle > --- INVENTORY -------- Light Treads Improved Treads Wheel Wheel Wheel Compact Wheel EM Shotgun EM Shotgun [Rating: 17] Favorites ----------- Power Light Ion Engine Engine Light Ion Engine Propulsion Light Treads Treads Light Treads Leg Aluminum Leg Wheel Wheel Utility Improved Targeting Computer Device Makeshift Sensor Array Storage Small Storage Unit Processor Improved Targeting Computer Protection Light Armor Plating Weapon Light Assault Rifle Energy Gun Small Laser Ballistic Gun Light Assault Rifle Special Weapon Mining Laser Build | -11 -10 -10 -9 -9 -9 -8 ------- Run | Yrd Mat Min Mat Min Exi Min Slots Evolved 2 | . . . 2 . . . Power . | . . . . . . . Propulsion . | . . . . . . . Utility 2 | . . . 2 . . . Weapon . | . . . . . . . Parts Attached 29 | . . 5 9 6 4 5 Power 3 | . . 1 1 1 . . Engine 3 | . . 1 1 1 . . Core . | . . . . . . . Reactor . | . . . . . . . Propulsion 9 | . . 2 2 . 1 4 Treads 5 | . . 2 2 . 1 . Leg . | . . . . . . . Wheel 4 | . . . . . . 4 Hover . | . . . . . . . Flight . | . . . . . . . Utility 6 | . . . 3 . 3 . Device 3 | . . . 1 . 2 . Storage 1 | . . . . . 1 . Processor 1 | . . . 1 . . . Hackware . | . . . . . . . Protection 1 | . . . 1 . . . Artifact . | . . . . . . . Weapon 11 | . . 2 3 5 . 1 Energy Gun 5 | . . . 2 3 . . Energy Cannon . | . . . . . . . Ballistic Gun 5 | . . 1 1 2 . 1 Ballistic Cannon . | . . . . . . . Launcher . | . . . . . . . Special Weapon 1 | . . 1 . . . . Impact Weapon . | . . . . . . . Slashing Weapon . | . . . . . . . Piercing Weapon . | . . . . . . . Special Melee Weapon . | . . . . . . . Unidentified Prototypes . | . . . . . . . Parts Lost 19 | . . 2 5 3 . 9 Power 4 | . . 1 2 . . 1 Propulsion 6 | . . 1 1 1 . 3 Utility 3 | . . . 1 . . 2 Weapon 6 | . . . 1 2 . 3 Highest Loss Streak 3 | . . 2 3 3 . 3 To Critical Strikes . | . . . . . . . Average Slot Usage (%) 73 | . 85 77 86 64 73 63 Engine 8 | . 14 13 8 10 11 . Treads 5 | . . 5 20 . 2 5 Leg 4 | . 28 21 . . . . Wheel 1 | . . . . . . 5 Device 10 | . . . 10 11 15 10 Storage 11 | . 14 14 11 11 11 10 Processor 8 | . . . 10 11 11 11 Energy Gun 3 | . 14 14 9 5 . . Ballistic Gun 17 | . 14 7 11 15 22 19 Peak Build Rating 17 | . 6 6 15 12 16 17 Average Rating 11 | . 6 5 12 9 13 15 On Entrance 8 | 6 6 6 6 12 9 15 Naked Turns . | . . . . . . . Heaviest Build 210 | 12 12 12 18 16 210 210 Greatest Support 46 | 20 20 40 46 23 20 20 Greatest Overweight (x) 69 | . . . . 5 69 69 Average Overweight (x) 3 | . . . . 3 4 16 Largest Inventory Capacity 35 | . 8 8 8 8 35 35 Average Capacity 16 | . 8 8 8 8 15 34 Most Carried 9 | . 6 8 8 8 8 9 Average Carried 7 | . 6 6 6 7 7 7 Final Capacity 35 | 8 8 8 8 8 35 5 Final Carried 8 | 6 6 4 8 8 6 5 Class Distribution -------------------- 66% | Mutant 33% | Hauler-Mutant Dominant Class ---------------- Mutant | -10/Materials Mutant | -10/Mines Mutant | -9/Materials Mutant | -9/Mines Mutant | -9/Exiles Hauler-Mutant | -8/Mines Resources | -11 -10 -10 -9 -9 -9 -8 ----------- Run | Yrd Mat Min Mat Min Exi Min Matter Collected 785 | 200 . 195 166 50 20 154 Remotely . | . . . . . . . Salvage Created 1303 | . . 346 485 72 113 287 Parts 87 | . . 19 33 7 3 25 Haulers Intercepted . | . . . . . . . Recyclers Shooed 4 | . . 3 . . . 1 Parts Field Recycled . | . . . . . . . Retrieved Matter . | . . . . . . . Parts Self-Destructed . | . . . . . . . Prevented . | . . . . . . . Kills | -11 -10 -10 -9 -9 -9 -8 ------- Run | Yrd Mat Min Mat Min Exi Min Combat Hostiles Destroyed 29 | . . 6 13 4 1 5 Guns 29 | . . 6 13 4 1 5 Classes Destroyed 8 | . . 4 2 . . 2 Worker 4 | . . 1 1 . . 2 Builder 1 | . . . . . . 1 Tunneler 2 | . . 1 . . . 1 Recycler 3 | . . 1 1 . . 1 Swarmer 13 | . . . 6 4 . 3 Grunt 13 | . . 6 5 . 1 1 Sentry 2 | . . . 2 . . . Hunter 1 | . . . . . . 1 Best Kill Streak 5 | . . 4 5 2 1 2 Combat Bots Only 5 | . . 2 5 2 1 2 Max Kills in Single Turn 2 | . . 1 2 1 1 1 Gunslinging 1 | . . . 1 . . . Exploded . | . . . . . . . Melee . | . . . . . . . Uniques/NPCs Destroyed . | . . . . . . . Combat | -11 -10 -10 -9 -9 -9 -8 -------- Run | Yrd Mat Min Mat Min Exi Min Hostile Shots Fired 310 | . . 40 117 40 . 113 Missed 78 | . . 7 33 16 . 22 Damage Taken 2672 | . . 458 861 180 . 1173 Core 555 | . . 146 146 28 . 235 Absorbed by Shields . | . . . . . . . Core Remaining (%) 70 | 100 . 41 . . . . Volleys Fired 175 | . . 49 55 7 10 54 Largest 2 | . . 2 2 2 2 2 Hottest 140 | . . 140 90 90 40 48 Shots Fired 300 | . . 85 97 10 20 88 Gun 297 | . . 82 97 10 20 88 Cannon . | . . . . . . . Launcher . | . . . . . . . Special 3 | . . 3 . . . . Kinetic 204 | . . 35 61 . 20 88 Thermal 70 | . . 50 20 . . . Explosive . | . . . . . . . Electromagnetic 26 | . . . 16 10 . . Robot Hit Streak 24 | . . 9 15 11 14 24 Robot Miss Streak 4 | . . 4 4 2 1 2 Penetration Max . | . . . . . . . Secondary Targets 8 | . . 1 6 1 . . Max Gunslinging Chain 1 | . . 1 1 1 . . Shots Hit Robots 194 | . . 50 66 9 14 55 Core Hits 89 | . . 23 30 6 7 23 Critical Kills . | . . . . . . . Critical Parts Destroyed 3 | . . . 1 . 1 1 Critical Strikes 3 | . . . 1 . 1 1 Destroy 3 | . . . 1 . 1 1 Melee Attacks . | . . . . . . . Impact . | . . . . . . . Slashing . | . . . . . . . Piercing . | . . . . . . . Sneak Attacks . | . . . . . . . Combat Hostiles . | . . . . . . . Follow-up Attacks . | . . . . . . . Damage Inflicted 1891 | . . 500 731 96 89 475 Guns 1841 | . . 500 681 96 89 475 Cannons . | . . . . . . . Explosions 48 | . . . 48 . . . Melee . | . . . . . . . Ramming 2 | . . . 2 . . . Kinetic 1056 | . . 147 345 . 89 475 Thermal 557 | . . 353 204 . . . Explosive . | . . . . . . . Electromagnetic 276 | . . . 180 96 . . Impact . | . . . . . . . Slashing . | . . . . . . . Piercing . | . . . . . . . Highest Corruption 1 | . 1 1 . . . . Average Corruption 1 | . 1 1 . . . . Corruption Purged . | . . . . . . . Corruption Blocked . | . . . . . . . Effects 7 | . . 7 . . . . Message Errors 2 | . . 2 . . . . Heat Flow Errors 1 | . . 1 . . . . Energy Discharges 2 | . . 2 . . . . Data Loss (major) 2 | . . 2 . . . . Overload Shots . | . . . . . . . Overflow Damage 18 | . . . 18 . . . Projectiles . | . . . . . . . Explosions 18 | . . . 18 . . . Melee . | . . . . . . . Knockbacks . | . . . . . . . Impact . | . . . . . . . Kinetic . | . . . . . . . Secondary . | . . . . . . . Self-Inflicted Damage 46 | . . . 46 . . . Shots 1 | . . . 1 . . . Rammed 1 | . . . 1 . . . Targets Rammed 1 | . . . 1 . . . Kicked . | . . . . . . . Crushed . | . . . . . . . Highest Temperature 254 | . . 254 12 . . 1 Average Temperature 73 | . . 77 12 . . 1 Received Heat Transfer 852 | . . 261 249 . . 342 Siege Activations . | . . . . . . . Robots Corrupted . | . . . . . . . Combat Hostiles . | . . . . . . . Parts Fried 1 | . . . 1 . . . Impact Corruptions . | . . . . . . . Robots Melted . | . . . . . . . Combat Hostiles . | . . . . . . . Parts Melted . | . . . . . . . Heat Transferred 1200 | . . 800 400 . . . Parts Sabotaged . | . . . . . . . Parts Stolen . | . . . . . . . Parts Stripped . | . . . . . . . Power Chain Reactions 1 | . . . 1 . . . Alert | -11 -10 -10 -9 -9 -9 -8 ------- Run | Yrd Mat Min Mat Min Exi Min Peak Influence 301 | . 27 80 301 139 . 116 Initial 64 | . . 10 31 64 . . Average 78 | . 17 64 140 133 . 45 Maximum Alert Level 1 | . . . 1 . . . Low Security (%) 94 | . 100 100 69 100 . 100 Level 1 5 | . . . 30 . . . Level 2 . | . . . . . . . Level 3 . | . . . . . . . Level 4 . | . . . . . . . Level 5 . | . . . . . . . High Security . | . . . . . . . Max Security . | . . . . . . . Squads Dispatched 3 | . 1 . 2 . . . Investigation 2 | . 1 . 1 . . . Extermination . | . . . . . . . Reinforcement 1 | . . . 1 . . . Assault . | . . . . . . . Garrison . | . . . . . . . Intercept . | . . . . . . . Searches Triggered . | . . . . . . . Construction Impeded . | . . . . . . . Haulers Reinforced . | . . . . . . . Active Scanning Responses . | . . . . . . . Cargo Convoy Interrupts . | . . . . . . . Stealth | -11 -10 -10 -9 -9 -9 -8 --------- Run | Yrd Mat Min Mat Min Exi Min Distress Signals 3 | . . . 2 . . 1 Communications Jammed . | . . . . . . . Distress Signals . | . . . . . . . Times Spotted 50 | . 2 6 23 3 . 16 Peak Tracking Total 6 | . 2 2 6 3 . 3 Tactical Retreats 4 | . . . 1 . . 3 Traps | -11 -10 -10 -9 -9 -9 -8 ------- Run | Yrd Mat Min Mat Min Exi Min Traps Triggered 2 | . 2 . . . . . Indirectly . | . . . . . . . Trap Hack Attempts . | . . . . . . . Triggered . | . . . . . . . Disarmed . | . . . . . . . Reprogrammed . | . . . . . . . Reused . | . . . . . . . Traps Extracted . | . . . . . . . Installed . | . . . . . . . Triggered . | . . . . . . . Machines | -11 -10 -10 -9 -9 -9 -8 ---------- Run | Yrd Mat Min Mat Min Exi Min Machines Disabled 1 | . . . . . . 1 Max in Single Turn 1 | . . . . . . 1 Machines Repaired . | . . . . . . . Machines Dismantled . | . . . . . . . Machines Sabotaged . | . . . . . . . Overloaded Fab Kills . | . . . . . . . Hacking | -11 -10 -10 -9 -9 -9 -8 --------- Run | Yrd Mat Min Mat Min Exi Min Machines Accessed 6 | . 2 . 1 . 2 1 Terminals 4 | . 2 . 1 . . 1 Fabricators . | . . . . . . . Repair Stations . | . . . . . . . Recycling Units . | . . . . . . . Scanalyzers . | . . . . . . . Garrison Access . | . . . . . . . Total Hacks 45 | . 5 . 5 . 32 3 Successful 38 | . 4 . 1 . 32 1 Failed 7 | . 1 . 4 . . 2 Catastrophic 2 | . . . 1 . . 1 Database Lockouts . | . . . . . . . Manual 15 | . 5 . 5 . 2 3 Terminals 13 | . 5 . 5 . . 3 Fabricators . | . . . . . . . Repair Stations . | . . . . . . . Recycling Units . | . . . . . . . Scanalyzers . | . . . . . . . Garrison Access . | . . . . . . . Terminal Hacks 33 | . . . 1 . 32 . Record 32 | . . . . . 32 . Recall Reinforcements 1 | . . . 1 . . . Fabricator Hacks . | . . . . . . . Repair Station Hacks . | . . . . . . . Recycling Unit Hacks . | . . . . . . . Scanalyzer . | . . . . . . . Garrison Access Hacks . | . . . . . . . Unauthorized Hacks 5 | . 4 . . . . 1 Terminals 5 | . 4 . . . . 1 Botnet 2 | . 1 . . . . 1 Operators 1 | . 1 . . . . . Skim 2 | . 2 . . . . . Fabricators . | . . . . . . . Repair Stations . | . . . . . . . Recycling Units . | . . . . . . . Scanalyzers . | . . . . . . . Garrison Access . | . . . . . . . Data Cores Recovered . | . . . . . . . Used . | . . . . . . . Hacking Detections 4 | . 2 . 1 . . 1 Full Trace Events 1 | . . . 1 . . . Feedback Events . | . . . . . . . Feedback Blocked . | . . . . . . . Robot Schematics Acquired . | . . . . . . . Robots Built . | . . . . . . . Authchips . | . . . . . . . Time . | . . . . . . . Total Robot Build Rating . | . . . . . . . Part Schematics Acquired . | . . . . . . . Parts Built . | . . . . . . . Authchips . | . . . . . . . Time . | . . . . . . . Total Part Build Rating . | . . . . . . . Parts Repaired . | . . . . . . . Time . | . . . . . . . Parts Recycled . | . . . . . . . Recycled Matter . | . . . . . . . Retrieved Matter . | . . . . . . . Retrieved Components . | . . . . . . . Parts Scanalyzed . | . . . . . . . Part Schematics Acquired . | . . . . . . . Parts Damaged . | . . . . . . . Bothacking | -11 -10 -10 -9 -9 -9 -8 ------------ Run | Yrd Mat Min Mat Min Exi Min Used RIF Installer . | . . . . . . . Robots Hacked . | . . . . . . . Non-combat . | . . . . . . . Combat . | . . . . . . . Robot Hacks Applied . | . . . . . . . Relay Couplers Released . | . . . . . . . Fabnet Peak Effective % . | . . . . . . . Robots Rewired . | . . . . . . . Allies Hacked . | . . . . . . . Hacks Repelled . | . . . . . . . Allies | -11 -10 -10 -9 -9 -9 -8 -------- Run | Yrd Mat Min Mat Min Exi Min Total Allies . | . . . . . . . Largest Group . | . . . . . . . Highest-Rated Group . | . . . . . . . Highest-Rated Ally . | . . . . . . . Total Orders . | . . . . . . . Ally Attacks . | . . . . . . . Total Damage . | . . . . . . . Kills . | . . . . . . . Allies Corrupted . | . . . . . . . Allies Melted . | . . . . . . . Intel | -11 -10 -10 -9 -9 -9 -8 ------- Run | Yrd Mat Min Mat Min Exi Min Robot Analysis Total . | . . . . . . . Derelict Logs Recovered 2 | . . 1 . 1 . . Drone Launches . | . . . . . . . Drone Recoveries . | . . . . . . . Exploration | -11 -10 -10 -9 -9 -9 -8 ------------- Run | Yrd Mat Min Mat Min Exi Min Turns Passed 4203 | . 83 680 479 273 1750 938 Spaces Moved 1414 | 1 70 380 174 112 552 125 Core 625 | . . . . 109 506 10 Treads 321 | . . 81 174 3 46 17 Legs 370 | 1 70 299 . . . . Wheels 98 | . . . . . . 98 Hover . | . . . . . . . Flight . | . . . . . . . Fastest Speed 120 | 120 120 120 160 160 200 230 Average Speed 254 | 120 120 128 160 212 312 631 Slowest Speed 3500 | 120 120 160 160 300 3500 3500 Overloaded Moves . | . . . . . . . Propulsion Burnouts . | . . . . . . . Robots Hopped . | . . . . . . . Cave-ins Triggered . | . . . . . . . Exploration Rate (%) 34 | 2 26 72 21 21 88 12 Regions Visited 6 Branch Regions 4 Pre-discovered Areas 2 | . . 1 . . 1 . Known Exits Taken . | . . . . . . . Unknown Exits Taken 6 | 1 1 1 1 1 1 . Scrap Searched 2 | . . 1 . 1 . . Spaces Dug 24 | . . 2 . . . 22 Terrain Destroyed 29 | . . 3 4 . . 22 Melee . | . . . . . . . Projectile 4 | . . 3 . . . 1 AOE 25 | . . . 4 . . 21 Terrain Rammed . | . . . . . . . Walls Destroyed . | . . . . . . . Machines Disabled . | . . . . . . . Actions | -11 -10 -10 -9 -9 -9 -8 --------- Run | Yrd Mat Min Mat Min Exi Min Total 1761 | . 69 488 286 136 570 212 Wait 129 | . . 51 43 10 . 25 Move 1408 | . 69 379 173 111 551 125 Hop . | . . . . . . . Pick Up 10 | . . 2 3 2 1 2 Fast Attach 14 | . . . 6 1 4 3 Attach 8 | . . 4 1 2 . 1 Detach . | . . . . . . . Swap 7 | . . 1 2 3 . 1 Drop 8 | . . 2 2 . 3 1 Fire 175 | . . 49 55 7 10 54 Melee . | . . . . . . . Ram . | . . . . . . . Kick . | . . . . . . . Crush 1 | . . . 1 . . . Escape Stasis . | . . . . . . . Rewire 1 | . . . . . 1 . Trap . | . . . . . . . Miscellaneous . | . . . . . . . Route ------- -11/Scrapyard -10/Materials -10/Mines (discovered 2 exits: *Mat x2) -9/Materials -9/Mines -9/Exiles -8/Mines History --------- Turn | Location | Event 1 | -11/Scrapyard | Discovered new exit (range 0) 1 | -11/Scrapyard | Entered Materials 67 | -10/Materials | Discovered new exit (range 15) 84 | -10/Materials | Entered Mines 159 | -10/Mines | Discovered new exit (range 4) 309 | -10/Mines | Build established: Mutant 601 | -10/Mines | Core integrity fell below 50% 639 | -10/Mines | Learned location of Zion (-7) 743 | -10/Mines | Discovered new exit (range 14) 764 | -10/Mines | Entered Materials 764 | -9/Materials | Evolved 2 slots: Utility x2 1039 | -9/Materials | Lost 3 parts (1p1u1w) 1230 | -9/Materials | Discovered new exit (range 8) 1243 | -9/Materials | Entered Mines 1294 | -9/Mines | Lost 3 parts (1n2w) 1297 | -9/Mines | Met a Derelict bent on vengeance 1360 | -9/Mines | Learned Materials terminal intel 1506 | -9/Mines | Deemed a non-threat by the Exiles lab entrance 1508 | -9/Mines | Discovered new exit (range 5) 1516 | -9/Mines | Entered Exiles 1516 | -9/Exiles | Found Exiles lab destroyed 3099 | -9/Exiles | Build established: Hauler-Mutant 3160 | -9/Exiles | Discovered new exit (range 11) 3266 | -9/Exiles | Entered Mines 3459 | -8/Mines | Core integrity fell below 50% 3889 | -8/Mines | Lost 3 parts (2n1w) 4195 | -8/Mines | Core integrity fell below 20% 4204 | -8/Mines | Destroyed by G-50 Soldier with Heavy Laser Last Messages --------------- 04088_ Slug penetrates Wall. 04090_ Acquired 17 matter. 04098_ K-01 Serf collects debris. 04125_ U-05 Engineer destroyed. 04162_ Slug penetrates Wall. 04162_ Plasma Injector explodes. 04164_ Slug penetrates R-06 Scavenger. 04164_ R-06 Scavenger sends out distress signal. 04166_ Slug penetrates Wall. 04168_ Mak. Sensor Array destroyed. 04168_ Destroyed Com. Wheel. 04170_ Slug penetrates Wall. 04188_ Gauss Rifle destroyed. 04188_ Critical hit (Burn: +37). 04190_ Humpback destroyed. 04195_ U-05 Engineer lays Concrete. 04196_ U-05 Engineer builds a Wall. 04200_ U-05 Engineer lays Concrete. 04201_ U-05 Engineer builds a Wall. 04202_ Critical hit (Burn: +37). Map ----- +----------------------------------------------------+ | ?????????????????????????????????????????????????? | | ?????????????????????????????????????????????????? | | ?????????????????????????????????????????????????? | | ?????????????????????????????????????????????????? | | ?????????????????????????????????????????????????? | | ?????????????????????????????????????????????????? | | ?????????????????????????????????????????????????? | | ?????????????????????????????????????????????????? | | ?????????????????????????????????????????????????? | | ?????????????????????????????????????????????????? | | ?????????????????????????????????????????????????? | | ?????????????????????????????????????????????????? | | ?????????????????????????????????????????????????? | | ?????????????????????????????????????????????????? | | ?????????????????????????????????????????????????? | | ?????????????????????????????????????????????????? | | ?????????????????????????????????????????????????? | | ?????????????????????????????????????????????????? | | ?????????????????????????????????????????????????? | | ?????????????????????????????????????????????????? | | ?????????????????????????????????????????????????? | | ?????????????????????????????????????????????????? | | ????????# ???????????????????????????????????????? | | ?????????"%" #?????????????????????????????????? | | ??????????? u ###########??????????????????? | | ??????????????????# ==%=@*=g!#??????????????????? | | ??????????????????###########%####???????????????? | | ???????????????????????#### =% #???????????????? | | ????????????????????####%%!%"""" #???????????????? | | ????????????????????# ! ## """" #???????????????? | | ????????###?????????# ##!##="""" #???????????????? | | ???????## #????????# ##%## #???????????????? | | ???????# #??????## *=#####T###???????????????? | | ???????# ??????# =##########??????????????? | | ???????# ####### ?????????? | | ??????## |%* ?????????? | | ??????# #### ########????????????? | | ??????# ### ### ### #????#???????????????????? | | ??????## ????# #?# #?# #????????????????????????? | | ???????#??????# #?# #?# #????????????????????????? | | ??????????????# #?# #?# #????????????????????????? | | ?????????????? #?# #?# #????????????????????????? | | ??????????????###?# #?# #????????????????????????? | | ??????????????????# ? ????????????????????????? | | ??????????????????###?###????????????????????????? | | ?????????????????????????????????????????????????? | | ?????????????????????????????????????????????????? | | ?????????????????????????????????????????????????? | | ?????????????????????????????????????????????????? | | ?????????????????????????????????????????????????? | +----------------------------------------------------+ Best States ------------- Heat Dissipation 50 Energy Generation 10 Energy Capacity 250 Matter Stores 300 Matter Capacity 300 Sight Range 16 Robot Scan Range 19 Terrain Scan Density 10 Armor Coverage 150 Evasion (%) 55 Targeting Accuracy 6 Recoil Reduction 2 Item Schematics ----------------- None Robot Schematics ------------------ None Fabricated ------------ Nothing Alien Tech Used ----------------- None Achievements -------------- None Challenges ------------ None Game ------ Seed ImpulseSeismicGravjet Manual? 0 Play Time 00:25:23 Cumulative 40.1 hours Start 2024.10.18 @ 19:24:44 End 2024.10.18 @ 19:38:20 Sessions 1 Manual Loads 0 Difficulty Rogue Special Mode None Game No. 42 Rogue 24 Adventurer 16 Explorer 2 Win Type - Total 1 Types 1/0/0/0/0/0/0/0/0 Lore% 12 Gallery% 36 Achievement% 33 Wizard Run 0 Options --------- Layout 2 ASCII 0 Keyboard 0 Movement Mouse Keybinds 1 Fullscreen 2 Font 24/Terminus Map View 50x44 Zoom Use 0% Tactical HUD 1 Map Filters NONE Filters NONE Steam 1 RUN: 84cd7fc1-e86f-4ed4-8540-0534f2456b5c